fUST/lending_fUST_20240425
["ID","MTS","AMOUNT","RATE_DAILY","PERIOD"]
[323423636,1713976245129,-529.0,0.00016712,2]
[323423638,1713976245138,-500.0,0.00016712,2]
[323423640,1713976245149,-500.0,0.00016712,2]
[323423643,1713976245162,-550.62,0.00016712,2]
[323423645,1713976245171,-500.0,0.00016712,2]
[323423647,1713976245180,-2097.13,0.00016712,2]
[323423649,1713976245190,-1562.91,0.00016712,2]
[323423650,1713976245199,-500.0,0.00016712,2]
[323423652,1713976245208,-598.26,0.00016712,2]
[323423655,1713976245218,-500.0,0.00016712,2]
[323423657,1713976245227,-500.0,0.00016712,2]
[323423658,1713976245236,-500.0,0.00016712,2]
[323423660,1713976245246,-500.0,0.00016712,2]
[323423662,1713976245255,-500.0,0.00016712,2]
[323423664,1713976245264,-500.0,0.00016712,2]
[323423667,1713976245273,-500.0,0.00016712,2]
[323423669,1713976245282,-500.0,0.00016712,2]
[323423671,1713976245290,-377.25496543,0.00016712,2]
[323423673,1713976245299,-500.0,0.00016712,2]
[323423675,1713976245308,-500.0,0.00016712,2]
[323423677,1713976245317,-500.0,0.00016712,2]
[323423679,1713976245327,-500.0,0.00016712,2]
[323423682,1713976245336,-290.822897,0.00016712,2]
[323423684,1713976245346,-500.0,0.00016712,2]
[323423686,1713976245355,-500.0,0.00016712,2]
[323423688,1713976245365,-1963.58,0.00016712,2]
[323423690,1713976245374,-500.0,0.00016712,2]
[323423692,1713976245387,-500.0,0.00016712,2]
[323423694,1713976245396,-500.0,0.00016712,2]
[323423696,1713976245406,-1655.34,0.00016712,2]
[323423698,1713976245415,-500.76994884,0.00016712,2]
[323423700,1713976245424,-500.0,0.00016712,2]
[323423702,1713976245433,-1744.46,0.00016712,2]
[323423704,1713976245442,-1209.51,0.00016712,2]
[323423706,1713976245451,-500.0,0.00016712,2]
[323423708,1713976245460,-500.0,0.00016712,2]
[323423710,1713976245469,-292.95212173,0.00016712,2]
[323423712,1713976245478,-500.0,0.00016712,2]
[323423714,1713976245487,-500.0,0.00016712,2]
[323423716,1713976245497,-882.83,0.00016712,2]
[323423718,1713976245507,-500.0,0.00016712,2]
[323423721,1713976245516,-500.0,0.00016712,2]
[323423724,1713976245525,-500.0,0.00016712,2]
[323423727,1713976245534,-500.0,0.00016712,2]
[323423729,1713976245543,-500.0,0.00016712,2]
[323423732,1713976245552,-502.2687264,0.00016712,2]
[323423734,1713976245562,-500.0,0.00016712,2]
[323423736,1713976245571,-500.0,0.00016712,2]
[323423738,1713976245580,-984.64,0.00016712,2]
[323423740,1713976245589,-982.22,0.00016712,2]
[323423742,1713976245598,-878.02,0.00016712,2]
[323423744,1713976245607,-500.0,0.00016712,2]
[323423746,1713976245616,-500.0,0.00016712,2]
[323423748,1713976245625,-500.0,0.00016712,2]
[323423750,1713976245637,-626.84,0.00016712,2]
[323423752,1713976245647,-500.0,0.00016712,2]
[323423754,1713976245656,-638.78,0.00016712,2]
[323423756,1713976245665,-500.0,0.00016712,2]
[323423758,1713976245674,-500.0,0.00016712,2]
[323423760,1713976245683,-500.0,0.00016712,2]
[323423762,1713976245692,-500.0,0.00016712,2]
[323423764,1713976245701,-1841.01,0.00016712,2]
[323423766,1713976245710,-522.79,0.00016712,2]
[323423768,1713976245719,-500.0,0.00016712,2]
[323423770,1713976245731,-501.6743332,0.00016712,2]
[323423772,1713976245740,-822.61,0.00016712,2]
[323423774,1713976245749,-500.0,0.00016712,2]
[323423776,1713976245758,-500.0,0.00016712,2]
[323423778,1713976245767,-500.0,0.00016712,2]
[323423780,1713976245776,-500.0,0.00016712,2]
[323423782,1713976245785,-500.0,0.00016712,2]
[323423784,1713976245797,-500.0,0.00016712,2]
[323423786,1713976245806,-500.0,0.00016712,2]
[323423788,1713976245816,-500.0,0.00016712,2]
[323423790,1713976245825,-1642.42,0.00016712,2]
[323423792,1713976245835,-501.31624573,0.00016712,2]
[323423794,1713976245844,-500.0,0.00016712,2]
[323423796,1713976245853,-330.04666515,0.00016712,2]
[323423798,1713976245862,-510.45822436,0.00016712,2]
[323423800,1713976245871,-514.25355199,0.00016712,2]
[323423802,1713976245884,-611.79,0.00016712,2]
[323423804,1713976245894,-501.2602715,0.00016712,2]
[323423806,1713976245903,-615.69,0.00016712,2]
[323423808,1713976245912,-2192.71,0.00016712,2]
[323423810,1713976245921,-500.98348651,0.00016712,2]
[323423812,1713976245930,-500.0,0.00016712,2]
[323423814,1713976245939,-500.0,0.00016712,2]
[323423816,1713976245948,-500.0,0.00016712,2]
[323423818,1713976245958,-500.0,0.00016712,2]
[323423820,1713976245967,-776.68,0.00016712,2]
[323423822,1713976245976,-637.46,0.00016712,2]
[323423824,1713976245986,-501.27309174,0.00016712,2]
[323423826,1713976245995,-500.0,0.00016712,2]
[323423828,1713976246007,-500.0,0.00016712,2]
[323423830,1713976246016,-639.1,0.00016712,2]
[323423832,1713976246026,-500.0,0.00016712,2]
[323423834,1713976246035,-487.27586317,0.00016712,2]
[323423837,1713976246045,-500.0,0.00016712,2]
[323423839,1713976246054,-500.0,0.00016712,2]
[323423842,1713976246063,-500.0,0.00016712,2]
[323423858,1713976246195,-500.0,0.00016712,2]
[323423861,1713976246206,-998.74,0.00016712,2]
[323423863,1713976246218,-1175.27,0.00016712,2]
[323423865,1713976246228,-507.82645358,0.00016712,2]
[323423867,1713976246238,-500.0,0.00016712,2]
[323423869,1713976246248,-500.0,0.00016712,2]
[323423871,1713976246258,-500.53434744,0.00016712,2]
[323423873,1713976246267,-500.0,0.00016712,2]
[323423875,1713976246276,-210.94047831,0.00016712,2]
[323423877,1713976246285,-537.88965798,0.00016712,2]
[323423879,1713976246294,-1783.06,0.00016712,2]
[323423881,1713976246304,-500.0,0.00016712,2]
[323423883,1713976246313,-500.0,0.00016712,2]
[323423885,1713976246322,-500.0,0.00016712,2]
[323423887,1713976246331,-500.0,0.00016712,2]
[323423889,1713976246341,-1113.86,0.00016712,2]
[323423891,1713976246351,-500.0,0.00016712,2]
[323423893,1713976246361,-507.23561629,0.00016712,2]
[323423894,1713976246371,-500.0,0.00016712,2]
[323423896,1713976246384,-931.24,0.00016712,2]
[323423899,1713976246394,-500.0,0.00016712,2]
[323423900,1713976246405,-2419.79,0.00016712,2]
[323423902,1713976246414,-500.0,0.00016712,2]
[323423904,1713976246425,-500.0,0.00016712,2]
[323423906,1713976246436,-500.0,0.00016712,2]
[323423908,1713976246446,-500.0,0.00016712,2]
[323423910,1713976246456,-1098.08,0.00016712,2]
[323423913,1713976246466,-500.0,0.00016712,2]
[323423915,1713976246477,-745.36,0.00016712,2]
[323423916,1713976246487,-500.0,0.00016712,2]
[323423919,1713976246498,-628.65496616,0.00016712,2]
[323423920,1713976246508,-500.0,0.00016712,2]
[323423923,1713976246519,-1008.71,0.00016712,2]
[323423924,1713976246528,-1244.51,0.00016712,2]
[323423926,1713976246538,-500.0,0.00016712,2]
[323423928,1713976246548,-512.78430323,0.00016712,2]
[323423930,1713976246558,-500.0,0.00016712,2]
[323423932,1713976246568,-500.0,0.00016712,2]
[323423934,1713976246580,-960.3,0.00016712,2]
[323423936,1713976246589,-500.51741182,0.00016712,2]
[323423938,1713976246599,-500.0,0.00016712,2]
[323423940,1713976246609,-939.9,0.00016712,2]
[323423942,1713976246620,-500.0,0.00016712,2]
[323423945,1713976246636,-500.0,0.00016712,2]
[323423946,1713976246647,-1480.74,0.00016712,2]
[323423948,1713976246657,-503.94596594,0.00016712,2]
[323423950,1713976246667,-627.1,0.00016712,2]
[323423951,1713976246677,-500.0,0.00016712,2]
[323423952,1713976246687,-577.06,0.00016712,2]
[323423953,1713976246696,-500.84504057,0.00016712,2]
[323423954,1713976246706,-500.0,0.00016712,2]
[323423955,1713976246716,-500.0,0.00016712,2]
[323423956,1713976246725,-818.79,0.00016712,2]
[323423957,1713976246736,-1605.56,0.00016712,2]
[323423958,1713976246746,-500.0,0.00016712,2]
[323423959,1713976246756,-500.0,0.00016712,2]
[323423960,1713976246768,-500.0,0.00016712,2]
[323423961,1713976246778,-500.0,0.00016712,2]
[323423962,1713976246791,-1362.57,0.00016712,2]
[323423963,1713976246802,-500.95731979,0.00016712,2]
[323423964,1713976246812,-1469.62,0.00016712,2]
[323423965,1713976246822,-2175.21,0.00016712,2]
[323423966,1713976246833,-500.0,0.00016712,2]
[323423967,1713976246844,-500.0,0.00016712,2]
[323423968,1713976246854,-500.0,0.00016712,2]
[323423969,1713976246864,-500.0,0.00016712,2]
[323423971,1713976246874,-522.57,0.00016712,2]
[323423973,1713976246893,-500.0,0.00016712,2]
[323423975,1713976246903,-500.0,0.00016712,2]
[323423977,1713976246913,-500.0,0.00016712,2]
[323423979,1713976246924,-1035.28,0.00016712,2]
[323423981,1713976246935,-920.26,0.00016712,2]
[323423983,1713976246944,-6939.5,0.00016712,2]
[323423985,1713976246954,-500.0,0.00016712,2]
[323423987,1713976246963,-500.0,0.00016712,2]
[323423989,1713976246974,-500.0,0.00016712,2]
[323423991,1713976246984,-1960.03,0.00016712,2]
[323423993,1713976246993,-4954.95,0.00016712,2]
[323423995,1713976247003,-1253.07,0.00016712,2]
[323423997,1713976247013,-18770.67,0.00016712,2]
[323423999,1713976247023,-500.61663028,0.00016712,2]
[323424001,1713976247032,-629.51,0.00016712,2]
[323424003,1713976247043,-500.0,0.00016712,2]
[323424005,1713976247054,-500.0,0.00016712,2]
[323424008,1713976247064,-662.94,0.00016712,2]
[323424009,1713976247075,-500.0,0.00016712,2]
[323424011,1713976247086,-2682.8,0.00016712,2]
[323424013,1713976247096,-20599.57,0.00016712,2]
[323424015,1713976247106,-500.0,0.00016712,2]
[323424017,1713976247116,-500.0,0.00016712,2]
[323424020,1713976247126,-500.0,0.00016712,2]
[323424021,1713976247140,-7791.77,0.00016712,2]
[323424023,1713976247150,-500.0,0.00016712,2]
[323424026,1713976247160,-500.0,0.00016712,2]
[323424027,1713976247170,-500.0,0.00016712,2]
[323424029,1713976247179,-1902.47,0.00016712,2]
[323424031,1713976247189,-500.29204213,0.00016712,2]
[323424033,1713976247199,-500.0,0.00016712,2]
[323424035,1713976247209,-1239.91,0.00016712,2]
[323424037,1713976247218,-500.0,0.00016712,2]
[323424039,1713976247227,-500.0,0.00016712,2]
[323424041,1713976247237,-500.0,0.00016712,2]
[323424044,1713976247247,-500.0,0.00016712,2]
[323424046,1713976247257,-744.14,0.00016712,2]
[323424047,1713976247267,-500.74636177,0.00016712,2]
[323424050,1713976247279,-500.0,0.00016712,2]
[323424051,1713976247288,-500.0,0.00016712,2]
[323424054,1713976247298,-512.71532442,0.00016712,2]
[323424055,1713976247308,-952.39,0.00016712,2]
[323424057,1713976247318,-2426.9,0.00016712,2]
[323424059,1713976247327,-669.91,0.00016712,2]
[323424060,1713976247336,-500.0,0.00016712,2]
[323424061,1713976247345,-503.54244888,0.00016712,2]
[323424062,1713976247354,-749.1,0.00016712,2]
[323424063,1713976247363,-1355.56,0.00016712,2]
[323424064,1713976247372,-500.0,0.00016712,2]
[323424065,1713976247384,-500.0,0.00016712,2]
[323424066,1713976247394,-500.0,0.00016712,2]
[323424067,1713976247403,-20958.66,0.00016712,2]
[323424068,1713976247412,-500.0,0.00016712,2]
[323424069,1713976247422,-595.36,0.00016712,2]
[323424070,1713976247432,-500.0,0.00016712,2]
[323424071,1713976247441,-1610.59,0.00016712,2]
[323424072,1713976247451,-465.15632115,0.00016712,2]
[323424073,1713976247461,-628.76,0.00016712,2]
[323424074,1713976247470,-613.48,0.00016712,2]
[323424075,1713976247480,-883.66,0.00016712,2]
[323424076,1713976247490,-500.0,0.00016712,2]
[323424077,1713976247499,-484.08119159,0.00016712,2]
[323424078,1713976247509,-500.0,0.00016712,2]
[323424079,1713976247518,-1144.06,0.00016712,2]
[323424080,1713976247528,-500.27138375,0.00016712,2]
[323424081,1713976247538,-500.0,0.00016712,2]
[323424082,1713976247548,-500.0,0.00016712,2]
[323424083,1713976247557,-634.36,0.00016712,2]
[323424084,1713976247567,-500.0,0.00016712,2]
[323424085,1713976247577,-402.07564828,0.00016712,2]
[323424086,1713976247587,-500.0,0.00016712,2]
[323424087,1713976247597,-500.0,0.00016712,2]
[323424088,1713976247606,-500.55821023,0.00016712,2]
[323424089,1713976247616,-2282.45,0.00016712,2]
[323424090,1713976247625,-6819.29,0.00016712,2]
[323424091,1713976247637,-500.0,0.00016712,2]
[323424092,1713976247647,-500.0,0.00016712,2]
[323424093,1713976247657,-587.8,0.00016712,2]
[323424094,1713976247667,-898.44,0.00016712,2]
[323424095,1713976247677,-2176.27,0.00016712,2]
[323424096,1713976247686,-500.0,0.00016712,2]
[323424097,1713976247697,-3467.77,0.00016712,2]
[323424098,1713976247707,-500.0,0.00016712,2]
[323424099,1713976247716,-500.0,0.00016712,2]
[323424100,1713976247725,-500.0,0.00016712,2]
[323424101,1713976247735,-500.0,0.00016712,2]
[323424102,1713976247745,-883.68,0.00016712,2]
[323424103,1713976247754,-500.55076593,0.00016712,2]
[323424104,1713976247764,-500.0,0.00016712,2]
[323424105,1713976247774,-500.0,0.00016712,2]
[323424106,1713976247783,-6675.69,0.00016712,2]
[323424107,1713976247793,-804.75,0.00016712,2]
[323424108,1713976247805,-500.0,0.00016712,2]
[323424109,1713976247815,-500.0,0.00016712,2]
[323424110,1713976247825,-9636.11,0.00016712,2]
[323424111,1713976247835,-500.0,0.00016712,2]
[323424112,1713976247845,-500.0,0.00016712,2]
[323424113,1713976247855,-500.0,0.00016712,2]
[323424114,1713976247864,-500.0,0.00016712,2]
[323424116,1713976247874,-500.0,0.00016712,2]
[323424117,1713976247888,-1093.45,0.00016712,2]
[323424119,1713976247897,-500.97262721,0.00016712,2]
[323424121,1713976247907,-3678.5,0.00016712,2]
[323424123,1713976247916,-500.0,0.00016712,2]
[323424125,1713976247925,-806.91,0.00016712,2]
[323424127,1713976247935,-500.0,0.00016712,2]
[323424129,1713976247944,-500.0,0.00016712,2]
[323424131,1713976247954,-500.0,0.00016712,2]
[323424132,1713976247964,-500.0,0.00016712,2]
[323424133,1713976247974,-500.0,0.00016712,2]
[323424134,1713976247983,-500.0,0.00016712,2]
[323424136,1713976247993,-500.0,0.00016712,2]
[323424138,1713976248002,-500.0,0.00016712,2]
[323424140,1713976248012,-500.0,0.00016712,2]
[323424142,1713976248021,-500.43747297,0.00016712,2]
[323424144,1713976248032,-500.7999827,0.00016712,2]
[323424145,1713976248041,-1314.64,0.00016712,2]
[323424146,1713976248051,-500.0,0.00016712,2]
[323424148,1713976248061,-500.0,0.00016712,2]
[323424150,1713976248070,-7426.29,0.00016712,2]
[323424152,1713976248079,-500.0,0.00016712,2]
[323424154,1713976248089,-500.0,0.00016712,2]
[323424156,1713976248098,-3073.94,0.00016712,2]
[323424158,1713976248106,-1294.3,0.00016712,2]
[323424159,1713976248116,-205.32066597,0.00016712,2]
[323424161,1713976248125,-500.0,0.00016712,2]
[323424163,1713976248137,-505.4742734,0.00016712,2]
[323424165,1713976248147,-500.0,0.00016712,2]
[323424167,1713976248156,-500.0,0.00016712,2]
[323424169,1713976248166,-922.41,0.00016712,2]
[323424172,1713976248177,-500.0,0.00016712,2]
[323424174,1713976248187,-500.0,0.00016712,2]
[323424176,1713976248196,-500.0,0.00016712,2]
[323424178,1713976248206,-500.0,0.00016712,2]
[323424179,1713976248216,-500.0,0.00016712,2]
[323424181,1713976248226,-14662.47,0.00016712,2]
[323424184,1713976248236,-500.0,0.00016712,2]
[323424185,1713976248245,-500.0,0.00016712,2]
[323424187,1713976248254,-500.0,0.00016712,2]
[323424189,1713976248265,-562.55,0.00016712,2]
[323424192,1713976248274,-500.0,0.00016712,2]
[323424193,1713976248284,-501.30256273,0.00016712,2]
[323424196,1713976248293,-856.79413,0.00016845,2]
[323424197,1713976248303,-929.654291,0.00016845,2]
[323424199,1713976248312,-2469.976829,0.00016845,2]
[323424201,1713976248321,-2788.962874,0.00016845,2]
[323424203,1713976248331,-929.654291,0.00016845,2]
[323424205,1713976248340,-856.79413,0.00016845,2]
[323424207,1713976248350,-322.53905828,0.00016986,2]
[323424209,1713976248359,-500.0,0.00016986,2]
[323424211,1713976248368,-500.0,0.00016986,2]
[323424213,1713976248378,-2301.59,0.00016986,2]
[323424215,1713976248390,-398.88697047,0.00016986,2]
[323424217,1713976248399,-500.0,0.00016986,2]
[323424219,1713976248408,-500.0,0.00016986,2]
[323424220,1713976248417,-500.0,0.00016986,2]
[323424222,1713976248427,-500.0,0.00016986,2]
[323424224,1713976248437,-224.36484176,0.00016986,2]
[323424226,1713976248446,-500.0,0.00016986,2]
[323424228,1713976248456,-1012.75,0.00016986,2]
[323424230,1713976248465,-500.0,0.00016986,2]
[323424233,1713976248475,-500.0,0.00016986,2]
[323424234,1713976248484,-1065.98,0.00016986,2]
[323424236,1713976248494,-503.27683505,0.00016986,2]
[323424238,1713976248503,-500.0,0.00016986,2]
[323424241,1713976248513,-1324.66,0.00016986,2]
[323424242,1713976248523,-614.97,0.00016986,2]
[323424245,1713976248533,-500.0,0.00016986,2]
[323424246,1713976248543,-500.0,0.00016986,2]
[323424248,1713976248553,-500.0,0.00016986,2]
[323424250,1713976248562,-500.0,0.00016986,2]
[323424253,1713976248572,-500.0,0.00016986,2]
[323424254,1713976248581,-720.48,0.00016986,2]
[323424256,1713976248590,-500.0,0.00016986,2]
[323424258,1713976248599,-500.0,0.00016986,2]
[323424260,1713976248608,-789.5,0.00016986,2]
[323424262,1713976248617,-500.0,0.00016986,2]
[323424264,1713976248626,-500.0,0.00016986,2]
[323424266,1713976248638,-318.72066129,0.00016986,2]
[323424268,1713976248647,-500.0,0.00016986,2]
[323424270,1713976248656,-500.0,0.00016986,2]
[323424272,1713976248665,-500.0,0.00016986,2]
[323424274,1713976248674,-529.0,0.00016986,2]
[323424276,1713976248683,-500.0,0.00016986,2]
[323424278,1713976248692,-500.0,0.00016986,2]
[323424292,1713976248816,-550.62,0.00016986,2]
[323424294,1713976248826,-500.0,0.00016986,2]
[323424297,1713976248838,-2097.13,0.00016986,2]
[323424298,1713976248847,-1562.91,0.00016986,2]
[323424301,1713976248857,-500.0,0.00016986,2]
[323424303,1713976248866,-598.26,0.00016986,2]
[323424304,1713976248876,-362.61373832,0.00016986,2]
[323424307,1713976248887,-500.0,0.00016986,2]
[323424308,1713976248896,-500.0,0.00016986,2]
[323424310,1713976248906,-500.0,0.00016986,2]
[323424312,1713976248915,-500.0,0.00016986,2]
[323424314,1713976248924,-500.0,0.00016986,2]
[323424316,1713976248934,-500.0,0.00016986,2]
[323424318,1713976248943,-500.0,0.00016986,2]
[323424320,1713976248952,-362.0002281,0.00016986,2]
[323424322,1713976248961,-500.0,0.00016986,2]
[323424324,1713976248970,-500.0,0.00016986,2]
[323424326,1713976248979,-500.0,0.00016986,2]
[323424328,1713976248989,-500.0,0.00016986,2]
[323424330,1713976248998,-500.0,0.00016986,2]
[323424332,1713976249006,-1963.58,0.00016986,2]
[323424334,1713976249015,-500.0,0.00016986,2]
[323424336,1713976249025,-500.0,0.00016986,2]
[323424338,1713976249034,-500.0,0.00016986,2]
[323424340,1713976249043,-1655.34,0.00016986,2]
[323424342,1713976249051,-500.0,0.00016986,2]
[323424344,1713976249061,-1744.46,0.00016986,2]
[323424346,1713976249071,-1209.51,0.00016986,2]
[323424348,1713976249080,-151.0,0.00016986,2]
[323424350,1713976249090,-500.0,0.00016986,2]
[323424352,1713976249098,-500.0,0.00016986,2]
[323424354,1713976249108,-500.0,0.00016986,2]
[323424356,1713976249117,-882.83,0.00016986,2]
[323424358,1713976249125,-500.0,0.00016986,2]
[323424360,1713976249137,-500.0,0.00016986,2]
[323424362,1713976249146,-500.0,0.00016986,2]
[323424364,1713976249155,-500.0,0.00016986,2]
[323424366,1713976249164,-372.66256397,0.00016986,2]
[323424368,1713976249174,-500.0,0.00016986,2]
[323424370,1713976249185,-984.64,0.00016986,2]
[323424371,1713976249194,-982.22,0.00016986,2]
[323424372,1713976249203,-878.02,0.00016986,2]
[323424373,1713976249212,-500.0,0.00016986,2]
[323424374,1713976249221,-500.0,0.00016986,2]
[323424375,1713976249230,-174.55481657,0.00016986,2]
[323424376,1713976249239,-626.84,0.00016986,2]
[323424377,1713976249248,-500.0,0.00016986,2]
[323424379,1713976249257,-638.78,0.00016986,2]
[323424381,1713976249266,-500.0,0.00016986,2]
[323424383,1713976249275,-500.0,0.00016986,2]
[323424385,1713976249284,-500.0,0.00016986,2]
[323424387,1713976249293,-500.0,0.00016986,2]
[323424389,1713976249303,-1841.01,0.00016986,2]
[323424391,1713976249312,-522.79,0.00016986,2]
[323424393,1713976249321,-500.0,0.00016986,2]
[323424395,1713976249330,-822.61,0.00016986,2]
[323424397,1713976249339,-500.0,0.00016986,2]
[323424399,1713976249348,-500.0,0.00016986,2]
[323424402,1713976249358,-500.0,0.00016986,2]
[323424404,1713976249367,-500.0,0.00016986,2]
[323424406,1713976249376,-500.0,0.00016986,2]
[323424407,1713976249387,-322.274581,0.00016986,2]
[323424409,1713976249396,-500.0,0.00016986,2]
[323424412,1713976249406,-500.0,0.00016986,2]
[323424413,1713976249415,-1642.42,0.00016986,2]
[323424416,1713976249424,-322.274581,0.00016986,2]
[323424418,1713976249433,-500.0,0.00016986,2]
[323424420,1713976249443,-611.79,0.00016986,2]
[323424422,1713976249453,-615.69,0.00016986,2]
[323424423,1713976249462,-2192.71,0.00016986,2]
[323424426,1713976249472,-500.0,0.00016986,2]
[323424428,1713976249481,-500.0,0.00016986,2]
[323424430,1713976249491,-500.0,0.00016986,2]
[323424431,1713976249500,-776.68,0.00016986,2]
[323424434,1713976249509,-151.0,0.00016986,2]
[323424436,1713976249519,-637.46,0.00016986,2]
[323424438,1713976249528,-500.0,0.00016986,2]
[323424440,1713976249537,-500.0,0.00016986,2]
[323424441,1713976249546,-639.1,0.00016986,2]
[323424443,1713976249556,-500.0,0.00016986,2]
[323424446,1713976249567,-500.0,0.00016986,2]
[323424448,1713976249576,-500.0,0.00016986,2]
[323424450,1713976249585,-500.0,0.00016986,2]
[323424452,1713976249594,-500.0,0.00016986,2]
[323424454,1713976249603,-998.74,0.00016986,2]
[323424456,1713976249612,-1175.27,0.00016986,2]
[323424458,1713976249621,-500.0,0.00016986,2]
[323424460,1713976249630,-500.0,0.00016986,2]
[323424462,1713976249641,-500.0,0.00016986,2]
[323424464,1713976249650,-1783.06,0.00016986,2]
[323424465,1713976249660,-386.41745192,0.00016986,2]
[323424468,1713976249670,-500.0,0.00016986,2]
[323424469,1713976249679,-973.901536,0.00016986,2]
[323424472,1713976249689,-500.0,0.00016986,2]
[323424474,1713976249698,-500.0,0.00016986,2]
[323424475,1713976249707,-1113.86,0.00016986,2]
[323424477,1713976249716,-500.0,0.00016986,2]
[323424479,1713976249725,-500.0,0.00016986,2]
[323424482,1713976249734,-931.24,0.00016986,2]
[323424484,1713976249743,-973.901536,0.00016986,2]
[323424485,1713976249752,-500.0,0.00016986,2]
[323424487,1713976249761,-2419.79,0.00016986,2]
[323424490,1713976249771,-500.0,0.00016986,2]
[323424492,1713976249780,-500.0,0.00016986,2]
[323424494,1713976249790,-500.0,0.00016986,2]
[323424496,1713976249799,-500.0,0.00016986,2]
[323424497,1713976249811,-1098.08,0.00016986,2]
[323424499,1713976249820,-500.0,0.00016986,2]
[323424502,1713976249829,-745.36,0.00016986,2]
[323424504,1713976249839,-291.97265709,0.00016986,2]
[323424506,1713976249848,-1008.71,0.00016986,2]
[323424508,1713976249858,-1244.51,0.00016986,2]
[323424510,1713976249867,-500.0,0.00016986,2]
[323424512,1713976249877,-500.0,0.00016986,2]
[323424513,1713976249888,-500.0,0.00016986,2]
[323424516,1713976249897,-960.3,0.00016986,2]
[323424518,1713976249906,-939.9,0.00016986,2]
[323424520,1713976249915,-500.0,0.00016986,2]
[323424522,1713976249924,-1480.74,0.00016986,2]
[323424524,1713976249934,-500.0,0.00016986,2]
[323424526,1713976249944,-627.1,0.00016986,2]
[323424528,1713976249953,-577.06,0.00016986,2]
[323424530,1713976249962,-500.0,0.00016986,2]
[323424532,1713976249971,-500.0,0.00016986,2]
[323424534,1713976249979,-818.79,0.00016986,2]
[323424536,1713976249989,-1605.56,0.00016986,2]
[323424538,1713976249997,-500.0,0.00016986,2]
[323424540,1713976250007,-500.0,0.00016986,2]
[323424542,1713976250016,-500.0,0.00016986,2]
[323424544,1713976250026,-1362.57,0.00016986,2]
[323424546,1713976250035,-1469.62,0.00016986,2]
[323424548,1713976250044,-2175.21,0.00016986,2]
[323424550,1713976250053,-500.0,0.00016986,2]
[323424552,1713976250063,-500.0,0.00016986,2]
[323424554,1713976250072,-500.0,0.00016986,2]
[323424556,1713976250081,-522.57,0.00016986,2]
[323424558,1713976250090,-500.0,0.00016986,2]
[323424560,1713976250099,-1035.28,0.00016986,2]
[323424562,1713976250109,-920.26,0.00016986,2]
[323424564,1713976250119,-493.57828559,0.00016986,2]
[323424566,1713976250128,-6939.5,0.00016986,2]
[323424568,1713976250140,-500.0,0.00016986,2]
[323424570,1713976250150,-1960.03,0.00016986,2]
[323424572,1713976250160,-4954.95,0.00016986,2]
[323424574,1713976250170,-1253.07,0.00016986,2]
[323424576,1713976250180,-18770.67,0.00016986,2]
[323424578,1713976250190,-151.0,0.00016986,2]
[323424580,1713976250199,-629.51,0.00016986,2]